fUSD/lending_fUSD_20240322
["ID","MTS","AMOUNT","RATE_DAILY","PERIOD"]
[320024445,1711065865419,287.12,0.00015178,2]
[320024446,1711065903361,500.0,0.00015,2]
[320024490,1711066231792,-222.51076452,0.000169,2]
[320024491,1711066231802,-729.04,0.00017,2]
[320024492,1711066231813,-163.85,0.00017031,2]
[320024493,1711066231823,-672.0,0.00017031,2]
[320024494,1711066231834,-1417.5,0.00017064,2]
[320024495,1711066231845,-250.0,0.00017087,2]
[320024496,1711066231854,-250.0,0.00017127,2]
[320024497,1711066231863,-203.0,0.00017157,2]
[320024498,1711066231874,-328.0,0.00017304,2]
[320024499,1711066231883,-299.69,0.00017404,2]
[320024500,1711066231893,-174.78316786,0.00017442,2]
[320024501,1711066231964,-112.33683214,0.00017442,2]
[320024502,1711066231974,-222.51076452,0.00017756,2]
[320024503,1711066231983,-242.892239,0.00017808,2]
[320024504,1711066231992,-179.93224075,0.0001782,2]
[320024505,1711066232002,-200.0,0.00017855,2]
[320024506,1711066232011,-800.0,0.00017855,2]
[320024507,1711066232021,-200.0,0.00017855,2]
[320024508,1711066232031,-500.0,0.00017855,2]
[320024509,1711066232040,-200.0,0.00017855,2]
[320024510,1711066232050,-800.0,0.00017855,2]
[320024511,1711066232060,-200.0,0.00017855,2]
[320024512,1711066232069,-578.50706541,0.00017856,2]
[320024515,1711066232102,-221.49293459,0.00017856,2]
[320024517,1711066232112,-200.0,0.00017856,2]
[320024519,1711066232121,-198.69706541,0.00017856,2]
[320024520,1711066232134,-1.30293459,0.00017856,2]
[320024521,1711066232144,-200.0,0.00017856,2]
[320024522,1711066232153,-800.0,0.00017856,2]
[320024523,1711066232163,-800.0,0.00017856,2]
[320024525,1711066232172,-226.83527403,0.00017856,2]
[320024528,1711066232184,-573.16472597,0.00017856,2]
[320024530,1711066232193,-200.0,0.00017856,2]
[320024532,1711066232203,-200.0,0.00017856,2]
[320024534,1711066232214,-200.0,0.00017856,2]
[320024535,1711066232223,-500.0,0.00017856,2]
[320024537,1711066232232,-500.0,0.00017856,2]
[320024539,1711066232241,-200.0,0.00017856,2]
[320024540,1711066232251,-3560.37820862,0.0001789,2]
[320024541,1711066232260,-186.61244391,0.000179,2]
[320024542,1711066232270,-191.36549551,0.000179,2]
[320024543,1711066232279,-169.4551729,0.000179,2]
[320024544,1711066232299,-1075.43,0.000179,2]
[320024554,1711066237398,-4087.4436271,0.000179,2]
[320024555,1711066237410,-402.79786742,0.000179,2]
[320024556,1711066237421,-2355.11778204,0.000179,2]
[320024557,1711066237431,-667.73360668,0.000179,2]
[320024558,1711066237441,-81262.81742493,0.000179,2]
[320024559,1711066237452,-234.032207,0.00017998,2]
[320024560,1711066237463,-234.032207,0.00017998,2]
[320024561,1711066237472,-397.86579353,0.00017998,2]
[320024562,1711066237482,-503.98242649,0.00017999,2]
[320024563,1711066237491,-157.15415966,0.00017999,2]
[320024564,1711066237500,-3337.78538602,0.00017999,2]
[320024565,1711066237510,-515080.83684421,0.00018,2]
[320024566,1711066237519,-921611.98552212,0.00018,2]
[320024567,1711066237531,-995.94,0.00018,2]
[320024568,1711066237564,-420914.99191116,0.00018,2]
[320024574,1711066239797,-350.79160017,0.00018,2]
[320024630,1711066245913,-179.93224075,0.0001782,2]
[320024631,1711066245929,-150.01,0.00017999,2]
[320024632,1711066245939,-590.67658071,0.00017999,2]
[320024633,1711066245956,-2468.96002314,0.00017999,2]
[320024634,1711066245967,-15431.03997686,0.00018,2]
[320024635,1711066245984,-641.93550515,0.00018,2]
[320024636,1711066253713,12801.57331794,0.00015,2]
[320024637,1711066253744,275088.16754501,0.00015,2]
[320024638,1711066269789,112308.03788045,0.00015,2]
[320024640,1711066402842,200.0,0.0001488,2]
[320024641,1711066411394,800.0,0.0001488,2]
[320024642,1711066422064,200.0,0.0001488,2]
[320024643,1711066435100,500.0,0.0001488,2]
[320024644,1711066440278,200.0,0.0001488,2]
[320024645,1711066572441,-1200.0,0.00022,23]
[320024646,1711066584900,-1200.0,0.00023,24]
[320024647,1711066780099,197.2,0.00025583,120]
[320024648,1711066934568,274.41,0.00014796,2]
[320024649,1711067024978,175.03,0.00013699,2]
[320024650,1711067105409,-174.58,0.00016431,2]
[320024651,1711067105673,-343.0245259,0.00016467,2]
[320024652,1711067105696,-10984.58,0.00016468,2]
[320024653,1711067105719,-1053.47350893,0.00016507,2]
[320024654,1711067105742,-1053.76796528,0.00016508,2]
[320024655,1711067105766,-5509.68271,0.00016509,2]
[320024656,1711067105791,-2166.14590872,0.0001651,2]
[320024657,1711067105819,-206.28986561,0.0001651,2]
[320024658,1711067105844,-236.07933468,0.0001651,2]
[320024659,1711067105870,-155.0,0.0001651,2]
[320024660,1711067105893,-1586.55050626,0.00016511,2]
[320024661,1711067105919,-1530.82567462,0.00016512,2]
[320024662,1711067368466,269.76,0.00024736,120]
[320024663,1711067428650,260.68,0.00014283,2]
[320024679,1711067431641,-580.86,0.00016217,2]
[320024680,1711067431656,-358.5840718,0.00016219,2]
[320024681,1711067431669,-493.68515,0.00016219,2]
[320024682,1711067431699,-3199.88826925,0.00016219,2]
[320024683,1711067431711,-583.625,0.00016219,2]
[320024684,1711067431770,-414.25515716,0.00016219,2]
[320024685,1711067431832,-39986.96235179,0.00016219,2]
[320024686,1711067431842,-1053.76796528,0.00016225,2]
[320024687,1711067431852,-500.0,0.00016226,2]
[320024688,1711067431862,-653.95,0.00016238,2]
[320024689,1711067431873,-500.0,0.00016243,2]
[320024690,1711067431883,-641.78,0.00016258,2]
[320024691,1711067431893,-1416.5,0.00016263,2]
[320024692,1711067431906,-150.0,0.00016269,2]
[320024693,1711067431917,-232.06,0.00016279,2]
[320024694,1711067431926,-250.0,0.00016279,2]
[320024695,1711067431937,-250.0,0.00016285,2]
[320024696,1711067431948,-2751.0,0.00016416,2]
[320024697,1711067431959,-462.4,0.00016426,2]
[320024698,1711067431970,-200.0,0.00016444,2]
[320024699,1711067431980,-150.0,0.00016449,2]
[320024700,1711067431989,-2237.23,0.0001645,2]
[320024701,1711067431999,-23900.0,0.00016455,2]
[320024702,1711067432009,-10000.0,0.00016491,2]
[320024703,1711067432019,-269.76,0.00016491,2]
[320024704,1711067432029,-200.0,0.00016508,2]
[320024705,1711067432039,-3469.17432538,0.00016512,2]
[320024706,1711067432049,-260.68,0.00016547,2]
[320024707,1711067432058,-440.07,0.00016549,2]
[320024708,1711067432069,-310.0,0.00016579,2]
[320024709,1711067432078,-291.06,0.0001658,2]
[320024710,1711067432091,-440.07,0.00016595,2]
[320024711,1711067432100,-314.99222468,0.00016596,2]
[320024712,1711067432110,-578.71213299,0.00016596,2]
[320024713,1711067432120,-235.83663788,0.00016596,2]
[320024714,1711067432130,-2017.64245885,0.00016596,2]
[320024715,1711067432140,-155.0,0.00016597,2]
[320024716,1711067432152,-289.25188471,0.00016597,2]
[320024717,1711067432162,-1586.50520594,0.00016597,2]
[320024718,1711067432171,-440.07,0.0001664,2]
[320024719,1711067432181,-440.07,0.00016686,2]
[320024720,1711067432190,-8207.34,0.00016694,2]
[320024721,1711067432200,-440.07,0.00016731,2]
[320024722,1711067432210,-440.07,0.00016776,2]
[320024723,1711067432220,-440.07,0.00016822,2]
[320024724,1711067432234,-537.6,0.00016853,2]
[320024725,1711067432245,-440.07,0.00016867,2]
[320024726,1711067432255,-440.07,0.00016913,2]
[320024727,1711067432266,-449.14958006,0.00016918,2]
[320024728,1711067432276,-440.07,0.00016958,2]
[320024729,1711067432286,-440.07,0.00017003,2]
[320024730,1711067432295,-440.07,0.00017049,2]
[320024731,1711067432305,-197.2,0.00017056,2]
[320024732,1711067432315,-157.66,0.00017056,2]
[320024733,1711067432325,-440.07,0.00017094,2]
[320024734,1711067432335,-440.07,0.00017139,2]
[320024735,1711067432345,-157.66,0.00017141,2]
[320024736,1711067432355,-440.07,0.00017185,2]
[320024737,1711067432365,-157.66,0.00017226,2]
[320024738,1711067432376,-440.07,0.0001723,2]
[320024739,1711067432385,-440.07,0.00017276,2]
[320024740,1711067432397,-157.66,0.00017312,2]
[320024741,1711067432407,-440.07,0.00017321,2]
[320024742,1711067432417,-440.07,0.00017366,2]
[320024743,1711067432428,-157.66,0.00017397,2]
[320024744,1711067432438,-440.07,0.00017412,2]
[320024745,1711067432448,-157.66,0.00017482,2]
[320024746,1711067432458,-157.66,0.00017567,2]
[320024747,1711067432468,-157.66,0.00017653,2]
[320024748,1711067432478,-151.24441476,0.00017719,2]
[320024749,1711067432489,-151.24441476,0.0001773,2]
[320024750,1711067432499,-157.66,0.00017738,2]
[320024751,1711067432509,-151.24441476,0.0001774,2]
[320024752,1711067432520,-151.24441476,0.00017751,2]
[320024753,1711067432531,-151.24441476,0.00017762,2]
[320024754,1711067432541,-151.24441476,0.00017772,2]
[320024755,1711067432553,-151.24441476,0.00017783,2]
[320024756,1711067432563,-151.24441476,0.00017794,2]
[320024757,1711067432573,-16530.83,0.000178,2]
[320024758,1711067432584,-442.3771,0.000178,2]
[320024759,1711067432594,-431.6445,0.000178,2]
[320024760,1711067432604,-7075.1622,0.000178,2]
[320024761,1711067432614,-151.24441476,0.00017804,2]
[320024762,1711067432624,-151.24441476,0.00017815,2]
[320024763,1711067432634,-1124.56070773,0.00017819,2]
[320024764,1711067432644,-179.93224075,0.0001782,2]
[320024765,1711067432656,-3000.0,0.0001782,2]
[320024766,1711067432666,-157.66,0.00017823,2]
[320024767,1711067432675,-151.24441476,0.00017825,2]
[320024768,1711067432686,-151.24441476,0.00017836,2]
[320024769,1711067432696,-586.45591,0.00017844,2]
[320024770,1711067432706,-151.24441476,0.00017847,2]
[320024771,1711067432717,-151.24441476,0.00017857,2]
[320024772,1711067432727,-151.24441476,0.00017868,2]
[320024773,1711067432737,-151.24441476,0.00017879,2]
[320024774,1711067432748,-151.24441476,0.00017889,2]
[320024775,1711067432758,-2784.03195324,0.00017899,2]
[320024776,1711067432769,-39732.9048,0.000179,2]
[320024777,1711067432778,-100000.0,0.000179,2]
[320024778,1711067432788,-1000.0,0.000179,2]
[320024779,1711067432798,-151.24441476,0.000179,2]
[320024780,1711067432809,-178.87155136,0.000179,2]
[320024781,1711067432821,-2257.82354665,0.000179,2]
[320024782,1711067432831,-519.89294252,0.000179,2]
[320024783,1711067432841,-157.66,0.00017909,2]
[320024784,1711067432851,-658.74639374,0.00017998,2]
[320024785,1711067432861,-624.1329573,0.00017998,2]
[320024786,1711067432871,-234.032209,0.00017998,2]
[320024787,1711067432882,-234.032209,0.00017998,2]
[320024788,1711067432893,-234.032209,0.00017998,2]
[320024789,1711067432905,-1013.65473484,0.00017999,2]
[320024790,1711067432914,-150.01,0.00017999,2]
[320024791,1711067432924,-2804.66688687,0.00017999,2]
[320024792,1711067432934,-76441.34216162,0.00018,2]
[320024793,1711067433207,-1800.87150906,0.00018,2]
[320024807,1711067437557,-343.0245259,0.00016216,2]
[320024809,1711067437566,-716.5103941,0.00018,2]
[320024811,1711067437579,-3291.16,0.00018,2]
[320024818,1711067437635,-271.806765,0.00018,2]
[320024826,1711067437704,-175572.15512903,0.00018,2]
[320024832,1711067437765,-645.88539279,0.00018,2]
[320024833,1711067437778,-251.60714365,0.00018,2]
[320024834,1711067437844,-738.18996079,0.00018,2]
[320024835,1711067437857,-277.0527081,0.00018,2]
[320024836,1711067437869,-26107.06579605,0.00018,2]
[320024837,1711067437881,-90380.27123043,0.00018,2]
[320024838,1711067437893,-1741.31701954,0.00018,2]
[320024839,1711067437911,-660.41,0.00018,2]
[320024840,1711067437927,-3582.68331864,0.00018,2]
[320024841,1711067437940,-420914.99191116,0.00018,2]
[320024859,1711067439677,-150.01,0.00017999,2]
[320024860,1711067439687,-2570.94464629,0.00017999,2]
[320024861,1711067439696,-56994.03028804,0.00018,2]
[320024862,1711067439798,-16506.25,0.00018,2]
[320024863,1711067439870,-18334.42364986,0.00018,2]
[320024864,1711067439934,-653.29529094,0.00018,2]
[320024865,1711067439946,-1583.15635999,0.00018,2]
[320024866,1711067439957,-393.6518078,0.00018,2]
[320024867,1711067441921,-179.93224075,0.0001782,2]
[320024868,1711067441931,-1258.84660943,0.00018,2]
[320024869,1711067441977,-1080.08675867,0.00018,2]
[320024889,1711067442639,-3000.0,0.0001798,2]
[320024890,1711067442649,-356677.4235029,0.00018,2]
[320024891,1711067442754,-5236.51923722,0.00018,2]
[320024892,1711067442937,-5431.50432538,0.00018,2]
[320024893,1711067442953,-3328.05286152,0.00018,2]
[320024900,1711067509036,1000.0,0.000243,120]
[320024903,1711067922114,234.61,0.00014943,2]
[320024904,1711067962279,1461.65248808,0.00014943,2]
[320024905,1711067966397,193.21883219,0.00014943,2]
[320024906,1711067967827,7461.57264164,0.00014943,2]
[320024907,1711067972708,363.53006581,0.00014943,2]
[320024908,1711067973398,155.0,0.00014943,2]
[320024909,1711067973537,291.09511646,0.00014943,2]
[320024910,1711067976623,1129.2438428,0.00014943,2]
[320024911,1711067995485,291.09511646,0.00014943,2]
[320024912,1711068000147,1129.2438428,0.00014943,2]
[320024913,1711068003308,292.99521253,0.00014943,2]
[320024914,1711068015496,291.77988773,0.00014943,2]
[320024915,1711068022543,303.93924796,0.00014943,2]
[320024916,1711068182589,164.49,0.00013497,2]
[320024918,1711068467142,277.89,0.00014714,2]
[320024919,1711068611022,90000.0,0.00015,2]
[320024922,1711068631948,-404.01411223,0.000159,2]
[320024923,1711068631965,-2300.0,0.000159,2]
[320024924,1711068632144,-31.74693467,0.000159,2]
[320024925,1711068632154,-1580.589431,0.0001592,2]
[320024926,1711068632164,-35872.98277974,0.00016,2]
[320024927,1711068632177,-4374.54722026,0.00016,2]
[320024928,1711068632188,-506.27749172,0.00016068,2]
[320024929,1711068632198,-506.2774917,0.00016109,2]
[320024930,1711068632208,-167.72594167,0.0001615,2]
[320024931,1711068632217,-506.2774917,0.0001615,2]
[320024932,1711068632228,-4407.69436295,0.0001625,2]
[320024933,1711068632240,-5741.75785207,0.0001625,2]
[320024934,1711068632257,-999.29545139,0.0001625,2]
[320024935,1711068632270,-4115.97623359,0.0001625,2]
[320024936,1711068632280,-1214.57294924,0.00016451,2]
[320024961,1711068637910,-1536.42705076,0.00016451,2]
[320024962,1711068637921,-167.72594164,0.000165,2]
[320024963,1711068637931,-1490.47,0.00016597,2]
[320024964,1711068637941,-13169.19,0.00016643,2]
[320024965,1711068637951,-1019.44,0.00016643,2]
[320024966,1711068637961,-181.96,0.00016643,2]
[320024967,1711068637971,-250.0,0.0001667,2]
[320024968,1711068637980,-369.92,0.0001667,2]
[320024969,1711068637991,-708.25,0.00016703,2]
[320024970,1711068638000,-250.0,0.00016725,2]
[320024971,1711068638011,-200.0,0.00016747,2]
[320024972,1711068638020,-5994.61,0.00016747,2]
[320024973,1711068638030,-3836.86,0.00016766,2]
[320024974,1711068638040,-403.9,0.00016766,2]
[320024975,1711068638051,-254.85,0.00016813,2]
[320024976,1711068638061,-9999.99,0.00016813,2]
[320024977,1711068638071,-167.72594164,0.0001685,2]
[320024978,1711068638080,-336.51,0.0001686,2]
[320024979,1711068638090,-1826.12,0.0001686,2]
[320024980,1711068638099,-150.99,0.0001686,2]
[320024981,1711068638111,-36245.16961164,0.00016861,2]
[320024982,1711068638121,-455.3,0.00016871,2]
[320024983,1711068638131,-488.8,0.00016871,2]
[320024984,1711068638140,-277.89,0.00016978,2]
[320024985,1711068638150,-11834.8828916,0.00017,5]
[320024986,1711068638159,-167.72594164,0.000172,2]
[320024987,1711068638169,-218.603015,0.0001726,2]
[320024988,1711068638179,-523.71,0.00017512,2]
[320024990,1711068638189,-999.99,0.00017512,2]
[320024991,1711068638198,-499.99,0.00017512,2]
[320024992,1711068638208,-521.06,0.00017512,2]
[320024993,1711068638218,-2621.36791485,0.00017512,2]
[320024994,1711068638244,-1419.60208515,0.00017512,2]
[320024995,1711068638254,-167.72594164,0.0001755,2]
[320024996,1711068638264,-523.71,0.00017558,2]
[320024997,1711068638274,-523.71,0.00017604,2]
[320024998,1711068638284,-523.71,0.0001765,2]
[320024999,1711068638294,-150.99,0.0001765,2]
[320025000,1711068638303,-831.91,0.0001765,2]
[320025001,1711068638313,-523.71,0.00017696,2]
[320025002,1711068638322,-523.71,0.00017742,2]
[320025003,1711068638333,-155.0,0.00017788,2]
[320025004,1711068638342,-1053.13673053,0.00017788,2]
[320025005,1711068638354,-158.77670023,0.00017788,2]
[320025006,1711068638363,-1060.79590392,0.00017788,2]
[320025007,1711068638372,-155.0,0.00017788,2]
[320025008,1711068638381,-523.71,0.00017788,2]
[320025009,1711068638391,-26589.841,0.000178,2]
[320025010,1711068638400,-179.93224076,0.0001782,2]
[320025011,1711068638409,-523.71,0.00017834,2]
[320025012,1711068638419,-200.0,0.00017856,2]
[320025013,1711068638428,-800.0,0.00017856,2]
[320025014,1711068638439,-200.0,0.00017856,2]
[320025015,1711068638448,-500.0,0.00017856,2]
[320025016,1711068638458,-200.0,0.00017856,2]
[320025017,1711068638470,-523.71,0.0001788,2]
[320025018,1711068638481,-2223.814,0.00017899,2]
[320025019,1711068638492,-2716.7572,0.000179,2]
[320025020,1711068638502,-1403.35350734,0.000179,2]
[320025021,1711068638513,-167.72594164,0.000179,2]
[320025022,1711068638526,-2481.40906987,0.000179,2]
[320025023,1711068638537,-354.05312844,0.000179,2]
[320025024,1711068638547,-523.71,0.00017926,2]
[320025025,1711068638558,-523.71,0.00017972,2]
[320025026,1711068638568,-261.89255077,0.00017998,2]
[320025027,1711068638578,-258.99961319,0.00017998,2]
[320025028,1711068638590,-678.98981162,0.00017998,2]
[320025029,1711068638600,-22752.97822048,0.00017998,2]
[320025030,1711068638613,-6106.31460113,0.00017998,2]
[320025031,1711068638623,-3603.95060531,0.00017998,2]
[320025032,1711068638632,-234.032209,0.00017998,2]
[320025033,1711068638642,-234.032209,0.00017998,2]
[320025034,1711068638651,-234.032209,0.00017998,2]
[320025035,1711068638660,-234.032209,0.00017998,2]
[320025036,1711068638670,-23188.28687588,0.00017999,2]
[320025037,1711068638679,-185.4216928,0.00017999,2]
[320025038,1711068638689,-412.16176325,0.00017999,2]
[320025039,1711068638698,-150.01,0.00017999,2]
[320025040,1711068638708,-2570.94464629,0.00017999,2]
[320025041,1711068638717,-579.73889917,0.00017999,5]
[320025042,1711068638726,-310822.25034575,0.00018,2]
[320025043,1711068638783,-3932.66,0.00018,2]
[320025044,1711068638799,-87767.84487109,0.00018,2]
[320025048,1711068639840,-31885.09808,0.00018,2]
[320025049,1711068640040,-1737.03180902,0.00018,2]
[320025050,1711068640114,-32979.65691439,0.00018,2]
[320025056,1711068642626,-269.03790095,0.00018,2]
[320025059,1711068642866,-359.93999998,0.00018,2]
[320025060,1711068642900,-6101.19835789,0.00018,2]
[320025061,1711068643047,-150.01,0.00017999,2]
[320025062,1711068643057,-3291.71835066,0.00018,2]
[320025085,1711068645948,-352.56085798,0.00017999,2]
[320025091,1711068737053,185.46,0.00025273,120]
[320025094,1711068855658,535.16255283,0.000135,2]
[320025095,1711068871200,342.3658008,0.000137,2]
[320025097,1711068973013,362.06075697,0.00014397,2]
[320025098,1711068993376,-250.1,0.00015405,2]
[320025099,1711068993403,-150.0,0.00015899,2]
[320025100,1711068993427,-4599.9,0.000159,2]
[320025101,1711069314885,165.85,0.00013699,2]
[320025102,1711069341301,161.85,0.00024936,120]
[320025103,1711069401545,237.59,0.00014705,2]
[320025116,1711069832092,-467.306103,0.00015721,2]
[320025117,1711069832101,-999.2955,0.000158,2]
[320025118,1711069832111,-268.03,0.000164,2]
[320025119,1711069832121,-4423.5474719,0.00016403,2]
[320025120,1711069832132,-1400.72446431,0.00016403,2]
[320025121,1711069832681,-1640.61887293,0.00016403,2]
[320025122,1711069832693,-6127.228,0.00016403,2]
[320025123,1711069832705,-3386.09715096,0.00016403,2]
[320025124,1711069832716,-748.44402773,0.00016403,2]
[320025125,1711069832743,-648.56657786,0.00016403,2]
[320025126,1711069832754,-5504.77343431,0.00016403,2]
[320025127,1711069832764,-250.0,0.00016404,2]
[320025128,1711069832773,-250.0,0.0001646,2]
[320025129,1711069832784,-704.06,0.00016474,2]
[320025130,1711069832793,-1504.79951933,0.0001648,2]
[320025131,1711069832807,-446.84048067,0.0001648,2]
[320025132,1711069832816,-165.53493855,0.00016524,2]
[320025133,1711069832826,-5000.0,0.00016527,2]
[320025134,1711069832836,-499.99,0.00016527,2]
[320025135,1711069832845,-2751.0,0.00016538,2]
[320025136,1711069832854,-150.99,0.00016538,2]
[320025137,1711069832864,-200.0,0.00016543,2]
[320025138,1711069832874,-1419.6,0.00016543,2]
[320025139,1711069832884,-811.94,0.00016594,2]
[320025141,1711069832893,-161.85,0.00016624,2]
[320025144,1711069832903,-500.0,0.00016648,2]
[320025148,1711069832912,-2643.81910616,0.00016666,2]
[320025151,1711069832931,-1319.32387307,0.00016666,2]
[320025158,1711069838306,-4710.72729612,0.00016666,2]
[320025159,1711069838317,-1000.0,0.00016666,2]
[320025160,1711069838327,-165.53493855,0.00016868,2]
[320025161,1711069838337,-237.59,0.00016969,2]
[320025162,1711069838347,-10000.0,0.00017,2]
[320025163,1711069838357,-270.68,0.00017028,2]
[320025164,1711069838367,-295.94,0.00017066,2]
[320025165,1711069838376,-270.68,0.00017073,2]
[320025166,1711069838386,-270.68,0.00017118,2]
[320025167,1711069838395,-270.68,0.00017162,2]
[320025168,1711069838405,-270.68,0.00017207,2]
[320025169,1711069838414,-165.53493855,0.00017212,2]
[320025170,1711069838424,-270.68,0.00017252,2]
[320025171,1711069838433,-196.742714,0.0001726,2]
[320025172,1711069838443,-831.91,0.0001728,2]
[320025173,1711069838451,-270.68,0.00017297,2]
[320025174,1711069838461,-270.68,0.00017342,2]
[320025175,1711069838470,-270.68,0.00017387,2]
[320025176,1711069838480,-270.68,0.00017431,2]
[320025177,1711069838489,-270.68,0.00017476,2]
[320025178,1711069838499,-270.68,0.00017521,2]
[320025179,1711069838508,-165.53493855,0.00017556,2]
[320025180,1711069838517,-270.68,0.00017566,2]
[320025181,1711069838527,-270.68,0.00017611,2]
[320025182,1711069838538,-270.68,0.00017656,2]
[320025183,1711069838548,-270.68,0.000177,2]
[320025184,1711069838558,-270.68,0.00017745,2]
[320025185,1711069838567,-270.68,0.0001779,2]
[320025186,1711069838576,-179.93224076,0.0001782,2]
[320025187,1711069838586,-270.68,0.00017835,2]
[320025188,1711069838595,-200.0,0.00017856,2]
[320025189,1711069838604,-800.0,0.00017856,2]
[320025190,1711069838617,-200.0,0.00017856,2]
[320025191,1711069838627,-500.0,0.00017856,2]
[320025192,1711069838636,-200.0,0.00017856,2]
[320025193,1711069838646,-270.68,0.0001788,2]
[320025194,1711069838656,-186.6124439,0.000179,2]
[320025195,1711069838666,-454.90632467,0.000179,2]
[320025196,1711069838677,-2716.7572,0.000179,2]
[320025197,1711069838687,-26589.841,0.000179,2]
[320025198,1711069838697,-178.87155137,0.000179,2]
[320025199,1711069838707,-165.53493855,0.000179,2]
[320025200,1711069838717,-1000.0,0.000179,2]
[320025201,1711069838726,-2223.814,0.000179,2]
[320025202,1711069838736,-420.43808999,0.000179,2]
[320025203,1711069838745,-1403.35350734,0.000179,2]
[320025204,1711069838754,-155.0,0.00017996,2]
[320025205,1711069838764,-1060.79590392,0.00017996,2]
[320025206,1711069838773,-158.77670023,0.00017996,2]
[320025207,1711069838783,-1053.13673053,0.00017996,2]
[320025208,1711069838795,-155.0,0.00017996,2]
[320025209,1711069838805,-1762.50822106,0.00017997,2]
[320025210,1711069838814,-330.67837664,0.00017998,2]
[320025211,1711069838826,-174.25787946,0.00017998,2]
[320025212,1711069838836,-303.33274784,0.00017998,2]
[320025213,1711069838846,-155.4665216,0.00017998,2]
[320025214,1711069838856,-155.4366584,0.00017998,2]
[320025215,1711069838865,-2971.50645971,0.00017998,2]
[320025216,1711069838874,-174.07301397,0.00017998,2]
[320025217,1711069838883,-155.0,0.00017998,2]
[320025218,1711069838893,-524.6597141,0.00017998,2]
[320025219,1711069838906,-2162.89736187,0.00017998,2]
[320025220,1711069838915,-185.4216928,0.00017998,2]
[320025221,1711069838925,-412.16176325,0.00017998,2]
[320025222,1711069838934,-3603.95060531,0.00017998,2]
[320025223,1711069838944,-23188.28687588,0.00017998,2]
[320025224,1711069838953,-6106.31460113,0.00017998,2]
[320025225,1711069838962,-678.98981162,0.00017998,2]
[320025226,1711069838971,-258.99961319,0.00017998,2]
[320025227,1711069838980,-22752.97822048,0.00017998,2]
[320025228,1711069838989,-261.89255077,0.00017998,2]
[320025229,1711069838999,-234.032209,0.00017998,2]
[320025230,1711069839008,-234.032209,0.00017998,2]
[320025231,1711069839019,-234.032209,0.00017998,2]
[320025232,1711069839031,-234.032209,0.00017998,2]
[320025233,1711069839042,-155.0,0.00017999,2]
[320025234,1711069839052,-199.1871893,0.00017999,2]
[320025235,1711069839061,-236.00919875,0.00017999,2]
[320025236,1711069839071,-150.01,0.00017999,2]
[320025237,1711069839080,-579.73889917,0.00017999,5]
[320025238,1711069839089,-2538.8936592,0.00017999,2]
[320025239,1711069839099,-286615.32598263,0.00018,2]
[320025243,1711069840354,-406.24944498,0.00018,2]
[320025244,1711069841782,-315.0849692,0.00018,2]
[320025258,1711069843128,-150.01,0.00017999,2]
[320025259,1711069843138,-2308.08514473,0.00017999,2]
[320025260,1711069843148,-507.479925,0.00018,2]
[320025261,1711069843160,-3019.47755739,0.00018,2]
[320025262,1711069843462,-5960.23481618,0.00018,2]
[320025270,1711069846099,-250.10960453,0.00018,2]
[320025272,1711069856483,11367.54693217,0.00012479,2]
[320025275,1711069936624,1023537.89823361,0.00012479,2]
[320025276,1711070374894,224.7,0.00014701,2]
[320025277,1711070684720,185.46,0.00024775,120]
[320025278,1711070817391,225.35,0.00014599,2]
[320025279,1711071002714,217684.61677253,0.00014599,2]
[320025311,1711071032181,-204.60452207,0.00016373,2]
[320025313,1711071032193,-155.0,0.00016373,2]